[Event "7th Leer Open-B 2024"]
[Site "Leer"]
[Date "2024.10.31"]
[Round "2.11"]
[White "Wolthekker, Theo"]
[Black "Limper, Cornelia"]
[Result "1/2-1/2"]
[ECO "B01"]
[WhiteElo "1681"]
[BlackElo "1483"]
[Annotator "NA COMBH"]
[PlyCount "43"]
[EventDate "2024.10.14"]
[EventType "swiss"]
[EventCountry "GER"]
[SourceTitle "playchess.com"]
[Source "ChessBase"]
[SourceQuality "1"]
[TimeControl "40/5400+30:900+30"]

1. e4 {[%emt 0:02:40]} d5 {[%emt 0:00:19]} 2. e5 {[%emt 0:00:14]} c5 {[%emt 0:00:24]} 3. d4 {[%emt 0:03:03]} cxd4 {[%emt 0:00:52]} 4. Bd3 {[%emt 0:01:49]} e6 {[%emt 0:01:40]} 5. a3 {[%emt 0:00:38]} Nc6 {[%emt 0:01:30]} 6. f4 {[%emt 0:02:39]} Be7 {[%emt 0:02:50]} 7. Nf3 {[%emt 0:00:21]} Bd7 {[%emt 0:02:47]} 8. Nbd2 {[%emt 0:01:42]} Nh6 {[%emt 0:05:25]} 9. Nb3 {[%emt 0:04:30]} Qb6 {[%emt 0:01:33]} 10. O-O {[%emt 0:03:22]} O-O {[%emt 0:01:55]} 11. Kh1 {[%emt 0:00:51]} f5 {[%emt 0:02:14]} 12. exf6 {[%emt 1:14:41]} Bxf6 {[%emt 0:01:44]} 13. Qe1 {[%emt 0:00:00]} Rae8 {[%emt 0:01:02]} 14. Ne5 {[%emt 0:00:00]} Nxe5 {[%emt 0:03:28]} 15. fxe5 {[%emt 0:00:00]} Be7 {[%emt 0:01:44]} 16. Bxh6 {[%emt 0:00:00]} gxh6 {[%emt 0:00:28]} 17. Qe2 {[%emt 0:00:00]} Rxf1+ {[%emt 0:04:23]} 18. Rxf1 {[%emt 0:00:00]} Rf8 {[%emt 0:00:38]} 19. Rxf8+ {[%emt 0:00:00]} Bxf8 {[%emt 0:00:23]} 20. Qh5 {[%emt 0:00:00]} Qd8 {[%emt 0:03:54]} 21. Nxd4 {[%emt 0:00:00]} Qg5 {[%emt 0:01:04] Check Result:-0.40} 22. Qxg5+ {[%emt 0:05:00]} 1/2-1/2

[Event "7th Leer Open-B 2024"]
[Site "Leer"]
[Date "2024.10.31"]
[Round "2.12"]
[White "Wilmink, Luca"]
[Black "Geib, Niklas"]
[Result "1-0"]
[ECO "C50"]
[WhiteElo "1712"]
[BlackElo "1683"]
[Annotator "NA COMBH"]
[PlyCount "67"]
[EventDate "2024.10.14"]
[EventType "swiss"]
[EventCountry "GER"]
[SourceTitle "playchess.com"]
[Source "ChessBase"]
[SourceQuality "1"]
[TimeControl "40/5400+30:900+30"]

1. e4 {[%emt 0:00:02]} e5 {[%emt 0:00:05]} 2. Nf3 {[%emt 0:00:18]} Nc6 {[%emt 0:00:06]} 3. d4 {[%emt 0:00:39]} exd4 {[%emt 0:00:26]} 4. Bc4 {[%emt 0:00:55]} h6 {[%emt 0:00:19]} 5. O-O {[%emt 0:00:47]} Bc5 {[%emt 0:00:18]} 6. c3 {[%emt 0:00:25]} dxc3 {[%emt 0:01:56]} 7. Bxf7+ {[%emt 0:01:19]} Kxf7 {[%emt 0:03:04]} 8. Qd5+ {[%emt 0:00:10]} Ke8 {[%emt 0:00:30]} 9. Qh5+ {[%emt 0:00:45]} Kf8 {[%emt 0:00:45]} 10. Qxc5+ {[%emt 0:00:08]} d6 {[%emt 0:00:05]} 11. Qxc3 {[%emt 0:00:19]} Nf6 {[%emt 0:02:23]} 12. Nbd2 {[%emt 0:01:08]} Bg4 {[%emt 0:00:13]} 13. b3 {[%emt 0:02:37]} Qe8 {[%emt 0:01:42]} 14. Bb2 {[%emt 0:01:18]} Rg8 {[%emt 0:02:34]} 15. Rfe1 {[%emt 0:00:31]} Bxf3 {[%emt 0:03:16]} 16. Qxf3 {[%emt 0:02:35]} Ne5 {[%emt 0:00:15]} 17. Qc3 {[%emt 0:00:50]} c5 {[%emt 0:01:20]} 18. f4 {[%emt 0:01:42]} Nc6 {[%emt 0:01:55]} 19. e5 {[%emt 0:00:34]} Nd5 {[%emt 0:04:20]} 20. Qf3 {[%emt 0:02:34]} Qf7 {[%emt 0:01:19]} 21. e6 {[%emt 0:00:58]} Qf5 {[%emt 0:00:15]} 22. g4 {[%emt 0:02:30]} Qc2 {[%emt 0:02:48]} 23. Qxd5 {[%emt 0:00:45]} Qxb2 {[%emt 0:00:33]} 24. Qxd6+ {[%emt 0:01:18]} Ne7 {[%emt 0:01:25]} 25. Nc4 {[%emt 0:00:32]} Qd4+ {[%emt 0:01:03]} 26. Qxd4 {[%emt 0:00:13]} cxd4 {[%emt 0:00:06]} 27. Rad1 {[%emt 0:00:26]} Rd8 {[%emt 0:02:17]} 28. Ne5 {[%emt 0:00:43]} g6 {[%emt 0:00:39]} 29. Nd7+ {[%emt 0:00:34]} Kg7 {[%emt 0:00:56]} 30. Rxd4 {[%emt 0:00:14]} h5 {[%emt 0:00:37]} 31. h3 {[%emt 0:00:41]} Rh8 {[%emt 0:01:51]} 32. Kg2 {[%emt 0:01:31]} g5 {[%emt 0:01:48]} 33. f5 {[%emt 0:02:09]} hxg4 {[%emt 0:00:13] Check Result:14.97} 34. f6+ {[%emt 0:00:15]} 1-0

[Event "7th Leer Open-B 2024"]
[Site "Leer"]
[Date "2024.10.31"]
[Round "2.13"]
[White "Kopylov, Diana"]
[Black "Sparding, Norbert"]
[Result "1-0"]
[ECO "B15"]
[WhiteElo "1787"]
[BlackElo "1557"]
[Annotator "NA COMBH"]
[PlyCount "53"]
[EventDate "2024.10.14"]
[EventType "swiss"]
[EventCountry "GER"]
[SourceTitle "playchess.com"]
[Source "ChessBase"]
[SourceQuality "1"]
[TimeControl "40/5400+30:900+30"]

1. e4 {[%emt 0:03:28]} c6 {[%emt 0:01:06]} 2. d4 {[%emt 0:00:36]} d5 {[%emt 0:00:36]} 3. Nc3 {[%emt 0:00:35]} dxe4 {[%emt 0:00:36]} 4. Nxe4 {[%emt 0:00:36]} Nf6 {[%emt 0:00:54]} 5. Nxf6+ {[%emt 0:00:51]} exf6 {[%emt 0:00:37]} 6. c3 {[%emt 0:01:06]} Bf5 {[%emt 0:00:43]} 7. Bc4 {[%emt 0:02:31]} Bd6 {[%emt 0:01:02]} 8. Be3 {[%emt 0:02:51]} O-O {[%emt 0:01:26]} 9. Ne2 {[%emt 0:06:30]} Nd7 {[%emt 0:02:32]} 10. Ng3 {[%emt 0:07:26]} Bg6 {[%emt 0:00:53]} 11. O-O {[%emt 0:02:19]} Re8 {[%emt 0:01:10]} 12. Qf3 {[%emt 0:10:45]} Qc7 {[%emt 0:02:35]} 13. a3 {[%emt 0:08:52]} a5 {[%emt 0:01:00]} 14. Ba2 {[%emt 0:05:09]} a4 {[%emt 0:04:40]} 15. Rac1 {[%emt 0:07:48]} Ra5 {[%emt 0:02:10]} 16. c4 {[%emt 0:03:16]} Bxg3 {[%emt 0:01:23]} 17. hxg3 {[%emt 0:02:28]} Rf5 {[%emt 0:07:00]} 18. Bf4 {[%emt 0:03:20]} Qb6 {[%emt 0:02:20]} 19. Qc3 {[%emt 0:01:49]} Re2 {[%emt 0:04:40]} 20. Bb1 {[%emt 0:04:11]} Ra5 {[%emt 0:07:28]} 21. Rfe1 {[%emt 0:06:23]} Rxe1+ {[%emt 0:05:14]} 22. Rxe1 {[%emt 0:00:54]} Ra8 {[%emt 0:01:04]} 23. Bxg6 {[%emt 0:02:34]} fxg6 {[%emt 0:02:18]} 24. Re7 {[%emt 0:02:05]} Rd8 {[%emt 0:05:09]} 25. c5 {[%emt 0:01:47]} Qb3 {[%emt 0:01:15]} 26. Qxb3+ {[%emt 0:01:57]} axb3 {[%emt 0:00:32] Check Result:5.87} 27. Bc7 {[%emt 0:00:39]} 1-0

[Event "7th Leer Open-B 2024"]
[Site "Leer"]
[Date "2024.10.31"]
[Round "2.14"]
[White "Kompe, Joerg"]
[Black "Schenk, Quentin Alexander"]
[Result "1/2-1/2"]
[ECO "E91"]
[WhiteElo "1721"]
[BlackElo "1554"]
[Annotator "NA COMBH"]
[PlyCount "36"]
[EventDate "2024.10.14"]
[EventType "swiss"]
[EventCountry "GER"]
[SourceTitle "playchess.com"]
[Source "ChessBase"]
[SourceQuality "1"]
[TimeControl "40/5400+30:900+30"]

1. d4 {[%emt 0:00:10]} Nf6 {[%emt 0:00:04]} 2. Nf3 {[%emt 0:00:21]} g6 {[%emt 0:00:07]} 3. c4 {[%emt 0:00:18]} Bg7 {[%emt 0:00:05]} 4. Nc3 {[%emt 0:00:18]} d6 {[%emt 0:00:05]} 5. e4 {[%emt 0:00:23]} O-O {[%emt 0:00:14]} 6. Be2 {[%emt 0:00:39]} Re8 {[%emt 0:01:23]} 7. O-O {[%emt 0:01:10]} a6 {[%emt 0:04:30]} 8. h3 {[%emt 0:03:07]} c5 {[%emt 0:04:17]} 9. Be3 {[%emt 0:04:44]} cxd4 {[%emt 0:01:22]} 10. Nxd4 {[%emt 0:00:28]} e5 {[%emt 0:04:41]} 11. Nc2 {[%emt 0:05:43]} Be6 {[%emt 0:03:38]} 12. Qd2 {[%emt 0:04:07]} Qc8 {[%emt 0:00:29]} 13. Qxd6 {[%emt 0:09:36]} Bxh3 {[%emt 0:01:16]} 14. gxh3 {[%emt 0:02:02]} Qxh3 {[%emt 0:00:05]} 15. Qd3 {[%emt 0:09:42]} Ng4 {[%emt 0:02:31]} 16. Bxg4 {[%emt 0:02:44]} Qxg4+ {[%emt 0:00:25]} 17. Kh2 {[%emt 0:00:27]} Qh4+ {[%emt 0:00:04]} 18. Kg2 {[%emt 0:00:18] Check Result:0.00} Qg4+ {[%emt 0:00:06]} 1/2-1/2

[Event "7th Leer Open-B 2024"]
[Site "Leer"]
[Date "2024.10.31"]
[Round "2.14"]
[White "Gaertner, Lars-Florian"]
[Black "Hutwalker, Michael"]
[Result "1-0"]
[ECO "C30"]
[WhiteElo "1675"]
[BlackElo "1760"]
[Annotator "NA COMBH"]
[PlyCount "57"]
[EventDate "2024.10.14"]
[EventType "swiss"]
[EventCountry "GER"]
[SourceTitle "playchess.com"]
[Source "ChessBase"]
[SourceQuality "1"]
[TimeControl "40/5400+30:900+30"]

1. e4 {[%emt 0:00:04]} e5 {[%emt 0:00:05]} 2. Nc3 {[%emt 0:00:06]} Nf6 {[%emt 0:00:31]} 3. f4 {[%emt 0:00:11]} d6 {[%emt 0:01:35]} 4. Nf3 {[%emt 0:01:11]} Nc6 {[%emt 0:01:00]} 5. Bb5 {[%emt 0:01:41]} exf4 {[%emt 0:06:03]} 6. d4 {[%emt 0:02:16]} Bd7 {[%emt 0:00:05]} 7. Bxc6 {[%emt 0:01:34]} Bxc6 {[%emt 0:01:09]} 8. d5 {[%emt 0:02:30]} Bd7 {[%emt 0:00:09]} 9. Bxf4 {[%emt 0:01:41]} h6 {[%emt 0:05:20]} 10. O-O {[%emt 0:03:46]} g5 {[%emt 0:04:59]} 11. Bg3 {[%emt 0:05:25]} Nh5 {[%emt 0:04:10]} 12. Bf2 {[%emt 0:04:07]} Nf4 {[%emt 0:01:37]} 13. Bd4 {[%emt 0:02:58]} Rg8 {[%emt 0:01:35]} 14. e5 {[%emt 0:18:50]} g4 {[%emt 0:07:49]} 15. Nd2 {[%emt 0:02:29]} Ng6 {[%emt 0:09:57]} 16. Nde4 {[%emt 0:04:54]} Be7 {[%emt 0:03:31]} 17. exd6 {[%emt 0:01:39]} cxd6 {[%emt 0:02:05]} 18. Bf6 {[%emt 0:13:45]} Qb6+ {[%emt 0:03:20]} 19. Bd4 {[%emt 0:01:57]} Qc7 {[%emt 0:01:46]} 20. Qe2 {[%emt 0:01:48]} Kf8 {[%emt 0:10:10]} 21. Nf6 {[%emt 0:05:08]} Bxf6 {[%emt 0:00:51]} 22. Rxf6 {[%emt 0:01:28]} Ne5 {[%emt 0:03:30]} 23. Bxe5 {[%emt 0:02:46]} dxe5 {[%emt 0:04:19]} 24. Rxh6 {[%emt 0:01:00]} Kg7 {[%emt 0:04:06]} 25. Qd2 {[%emt 0:06:18]} f6 {[%emt 0:04:31]} 26. Rf1 {[%emt 0:02:07]} Raf8 {[%emt 0:08:39]} 27. Ne4 {[%emt 0:01:26]} f5 {[%emt 0:06:11]} 28. Qg5+ {[%emt 0:00:56]} Kf7 {[%emt 0:00:09] Check Result:29.45} 29. Qh5+ {[%emt 0:01:09]} 1-0

[Event "7th Leer Open-B 2024"]
[Site "Leer"]
[Date "2024.10.31"]
[Round "2.15"]
[White "Kuhlins, Niklas"]
[Black "Becker, Axel"]
[Result "1/2-1/2"]
[ECO "D35"]
[WhiteElo "1758"]
[BlackElo "1675"]
[Annotator "NA COMBH"]
[PlyCount "77"]
[EventDate "2024.10.14"]
[EventType "swiss"]
[EventCountry "GER"]
[SourceTitle "playchess.com"]
[Source "ChessBase"]
[SourceQuality "1"]
[TimeControl "40/5400+30:900+30"]

1. d4 {[%emt 0:00:06]} d5 {[%emt 0:00:06]} 2. c4 {[%emt 0:00:06]} e6 {[%emt 0:00:11]} 3. cxd5 {[%emt 0:00:08]} exd5 {[%emt 0:00:08]} 4. Nc3 {[%emt 0:00:10]} Nf6 {[%emt 0:00:11]} 5. Bg5 {[%emt 0:00:09]} Be7 {[%emt 0:00:08]} 6. e3 {[%emt 0:00:07]} O-O {[%emt 0:00:16]} 7. Bd3 {[%emt 0:00:08]} b6 {[%emt 0:01:04]} 8. Qc2 {[%emt 0:01:39]} h6 {[%emt 0:01:42]} 9. Bh4 {[%emt 0:00:09]} Ba6 {[%emt 0:00:26]} 10. Nf3 {[%emt 0:01:44]} Bxd3 {[%emt 0:04:02]} 11. Qxd3 {[%emt 0:00:09]} Nbd7 {[%emt 0:00:29]} 12. O-O {[%emt 0:02:27]} c5 {[%emt 0:05:29]} 13. Bxf6 {[%emt 0:02:27]} Nxf6 {[%emt 0:00:20]} 14. dxc5 {[%emt 0:00:21]} bxc5 {[%emt 0:07:13]} 15. Rfd1 {[%emt 0:01:58]} Qb6 {[%emt 0:04:28]} 16. Rd2 {[%emt 0:05:20]} Rfd8 {[%emt 0:05:40]} 17. Rad1 {[%emt 0:01:45]} Qe6 {[%emt 0:06:16]} 18. Qb5 {[%emt 0:09:46]} Rab8 {[%emt 0:14:59]} 19. Qa5 {[%emt 0:02:35]} Rd7 {[%emt 0:09:46]} 20. h3 {[%emt 0:06:39]} Rbd8 {[%emt 0:02:45]} 21. Qa4 {[%emt 0:04:20]} Rb8 {[%emt 0:04:14]} 22. Qc2 {[%emt 0:07:59]} Rb4 {[%emt 0:06:45]} 23. b3 {[%emt 0:06:48]} g5 {[%emt 0:10:37]} 24. a3 {[%emt 0:03:58]} Rb8 {[%emt 0:00:59]} 25. Nh2 {[%emt 0:02:24]} d4 {[%emt 0:06:13]} 26. exd4 {[%emt 0:00:48]} cxd4 {[%emt 0:00:24]} 27. Rxd4 {[%emt 0:01:57]} Rxd4 {[%emt 0:00:08]} 28. Rxd4 {[%emt 0:00:06]} Rxb3 {[%emt 0:00:15]} 29. Qd2 {[%emt 0:03:46]} Rxa3 {[%emt 0:01:17]} 30. Nf3 {[%emt 0:01:53]} Qc6 {[%emt 0:03:19]} 31. Nd5 {[%emt 0:02:05]} Ra1+ {[%emt 0:01:50]} 32. Kh2 {[%emt 0:00:18]} Bd6+ {[%emt 0:01:00]} 33. g3 {[%emt 0:00:15]} Nxd5 {[%emt 0:01:07]} 34. Rxd5 {[%emt 0:00:05]} Ra6 {[%emt 0:01:24]} 35. Nxg5 {[%emt 0:06:48]} Bxg3+ {[%emt 0:01:16]} 36. Kxg3 {[%emt 0:00:41]} Qc7+ {[%emt 0:00:40]} 37. Kg2 {[%emt 0:00:17]} hxg5 {[%emt 0:00:15]} 38. Rxg5+ {[%emt 0:00:21]} Rg6 {[%emt 0:00:35] Check Result:0.00} 39. Rxg6+ {[%emt 0:00:07]} 1/2-1/2

[Event "7th Leer Open-B 2024"]
[Site "Leer"]
[Date "2024.10.31"]
[Round "2.15"]
[White "Krause, Volker"]
[Black "Tietjen, Joshua"]
[Result "0-1"]
[ECO "A48"]
[WhiteElo "1517"]
[BlackElo "1697"]
[Annotator "NA COMBH"]
[PlyCount "64"]
[EventDate "2024.10.14"]
[EventType "swiss"]
[EventCountry "GER"]
[SourceTitle "playchess.com"]
[Source "ChessBase"]
[SourceQuality "1"]
[TimeControl "40/5400+30:900+30"]

1. d4 {[%emt 0:00:05]} g6 {[%emt 0:00:04]} 2. Bf4 {[%emt 0:00:16]} Bg7 {[%emt 0:00:11]} 3. Nf3 {[%emt 0:00:23]} d6 {[%emt 0:00:02]} 4. e3 {[%emt 0:01:03]} Nd7 {[%emt 0:00:18]} 5. c3 {[%emt 0:00:34]} Ngf6 {[%emt 0:00:39]} 6. Bd3 {[%emt 0:00:55]} O-O {[%emt 0:00:13]} 7. O-O {[%emt 0:00:30]} b6 {[%emt 0:00:02]} 8. Nbd2 {[%emt 0:02:23]} Bb7 {[%emt 0:00:01]} 9. Re1 {[%emt 0:01:21]} c5 {[%emt 0:01:02]} 10. Rc1 {[%emt 0:01:07]} Nh5 {[%emt 0:00:33]} 11. Bg3 {[%emt 0:00:23]} Nxg3 {[%emt 0:00:49]} 12. hxg3 {[%emt 0:00:09]} e5 {[%emt 0:01:24]} 13. e4 {[%emt 0:01:24]} cxd4 {[%emt 0:01:24]} 14. cxd4 {[%emt 0:00:31]} exd4 {[%emt 0:00:13]} 15. Nb3 {[%emt 0:00:58]} Nc5 {[%emt 0:01:01]} 16. Nxc5 {[%emt 0:02:19]} dxc5 {[%emt 0:00:35]} 17. a3 {[%emt 0:01:21]} Qe7 {[%emt 0:02:08]} 18. Qd2 {[%emt 0:01:00]} Rfd8 {[%emt 0:01:11]} 19. b4 {[%emt 0:01:16]} Rac8 {[%emt 0:03:35]} 20. Kf1 {[%emt 0:03:28]} Bf8 {[%emt 0:03:32]} 21. Qb2 {[%emt 0:06:54]} cxb4 {[%emt 0:02:06]} 22. axb4 {[%emt 0:00:33]} Qxb4 {[%emt 0:00:31]} 23. Qxb4 {[%emt 0:00:50]} Bxb4 {[%emt 0:00:03]} 24. Red1 {[%emt 0:00:24]} Rxc1 {[%emt 0:02:28]} 25. Rxc1 {[%emt 0:00:25]} Bc3 {[%emt 0:02:42]} 26. Ne5 {[%emt 0:03:09]} f6 {[%emt 0:01:50]} 27. Nf3 {[%emt 0:00:21]} Re8 {[%emt 0:00:35]} 28. g4 {[%emt 0:01:26]} Bxe4 {[%emt 0:00:11]} 29. Be2 {[%emt 0:01:09]} a5 {[%emt 0:02:09]} 30. Rd1 {[%emt 0:00:55]} Bc2 {[%emt 0:01:41]} 31. Rc1 {[%emt 0:00:24]} d3 {[%emt 0:01:11]} 32. Bd1 {[%emt 0:02:17] Check Result:-8.79} d2 {[%emt 0:00:51]} 0-1

[Event "7th Leer Open-B 2024"]
[Site "Leer"]
[Date "2024.10.31"]
[Round "2.16"]
[White "Meyer, Tobias"]
[Black "Jablonski, Ture"]
[Result "1-0"]
[ECO "C13"]
[WhiteElo "1671"]
[BlackElo "1756"]
[Annotator "NA COMBH"]
[PlyCount "91"]
[EventDate "2024.10.14"]
[EventType "swiss"]
[EventCountry "GER"]
[SourceTitle "playchess.com"]
[Source "ChessBase"]
[SourceQuality "1"]
[TimeControl "40/5400+30:900+30"]

1. e4 {[%emt 0:00:03]} e6 {[%emt 0:00:06]} 2. d4 {[%emt 0:00:29]} d5 {[%emt 0:00:03]} 3. Nc3 {[%emt 0:00:17]} Nf6 {[%emt 0:00:10]} 4. Bg5 {[%emt 0:00:18]} dxe4 {[%emt 0:00:09]} 5. Nxe4 {[%emt 0:00:44]} Be7 {[%emt 0:00:23]} 6. Nxf6+ {[%emt 0:02:00]} Bxf6 {[%emt 0:00:04]} 7. Bxf6 {[%emt 0:00:36]} Qxf6 {[%emt 0:00:03]} 8. Nf3 {[%emt 0:05:48]} O-O {[%emt 0:06:23]} 9. Bd3 {[%emt 0:02:02]} c5 {[%emt 0:00:58]} 10. O-O {[%emt 0:01:40]} cxd4 {[%emt 0:00:45]} 11. Nxd4 {[%emt 0:01:23]} Rd8 {[%emt 0:04:21]} 12. Nb5 {[%emt 0:10:51]} Nc6 {[%emt 0:00:13]} 13. Nc3 {[%emt 0:10:02]} Ne5 {[%emt 0:00:48]} 14. Ne4 {[%emt 0:04:12]} Qe7 {[%emt 0:00:44]} 15. Qe2 {[%emt 0:00:58]} Nxd3 {[%emt 0:00:20]} 16. cxd3 {[%emt 0:00:09]} Bd7 {[%emt 0:00:28]} 17. Nc3 {[%emt 0:03:47]} Bc6 {[%emt 0:01:50]} 18. Rfe1 {[%emt 0:03:02]} Rd7 {[%emt 0:04:03]} 19. Rad1 {[%emt 0:00:59]} Rad8 {[%emt 0:00:12]} 20. Rd2 {[%emt 0:00:44]} Qg5 {[%emt 0:02:12]} 21. g3 {[%emt 0:03:28]} Qf5 {[%emt 0:00:37]} 22. Ne4 {[%emt 0:03:16]} Bxe4 {[%emt 0:02:25]} 23. Qxe4 {[%emt 0:00:25]} Qxe4 {[%emt 0:00:12]} 24. Rxe4 {[%emt 0:00:11]} Rxd3 {[%emt 0:00:23]} 25. Rxd3 {[%emt 0:00:48]} Rxd3 {[%emt 0:00:04]} 26. Rc4 {[%emt 0:00:12]} Kf8 {[%emt 0:01:21]} 27. Rc7 {[%emt 0:00:24]} b5 {[%emt 0:03:47]} 28. Rxa7 {[%emt 0:00:19]} Rd2 {[%emt 0:00:21]} 29. b3 {[%emt 0:00:36]} Ke8 {[%emt 0:01:12]} 30. a4 {[%emt 0:00:25]} Rd7 {[%emt 0:01:43]} 31. Rxd7 {[%emt 0:01:51]} Kxd7 {[%emt 0:00:18]} 32. axb5 {[%emt 0:00:09]} Kc7 {[%emt 0:00:05]} 33. Kf1 {[%emt 0:00:46]} Kb6 {[%emt 0:00:04]} 34. Ke2 {[%emt 0:00:22]} e5 {[%emt 0:00:32]} 35. Kd3 {[%emt 0:00:24]} f5 {[%emt 0:20:19]} 36. Kc4 {[%emt 0:00:57]} f4 {[%emt 0:00:42]} 37. Kd5 {[%emt 0:00:29]} Kxb5 {[%emt 0:01:02]} 38. Kxe5 {[%emt 0:00:14]} Kb4 {[%emt 0:00:08]} 39. Kxf4 {[%emt 0:00:19]} Kxb3 {[%emt 0:00:12]} 40. Kf5 {[%emt 0:01:03]} Kc4 {[%emt 0:00:30]} 41. Ke6 {[%emt 0:16:42]} Kd3 {[%emt 0:15:50]} 42. Kf7 {[%emt 0:00:15]} g5 {[%emt 0:00:40]} 43. h4 {[%emt 0:00:09]} gxh4 {[%emt 0:01:14]} 44. gxh4 {[%emt 0:00:07]} Ke4 {[%emt 0:00:04]} 45. h5 {[%emt 0:01:06]} Kf5 {[%emt 0:03:48] Check Result:#14} 46. h6 {[%emt 0:00:10]} 1-0

[Event "7th Leer Open-B 2024"]
[Site "Leer"]
[Date "2024.10.31"]
[Round "2.16"]
[White "Wessels, Keke"]
[Black "Visschers, Fred"]
[Result "1-0"]
[ECO "A43"]
[WhiteElo "1508"]
[BlackElo "1675"]
[Annotator "NA COMBH"]
[PlyCount "71"]
[EventDate "2024.10.14"]
[EventType "swiss"]
[EventCountry "GER"]
[SourceTitle "playchess.com"]
[Source "ChessBase"]
[SourceQuality "1"]
[TimeControl "40/5400+30:900+30"]

1. d4 {[%emt 0:00:04]} c5 {[%emt 0:00:03]} 2. d5 {[%emt 0:01:14]} Qb6 {[%emt 0:00:06]} 3. Nc3 {[%emt 0:00:35]} e5 {[%emt 0:00:10]} 4. Nf3 {[%emt 0:00:53]} d6 {[%emt 0:00:07]} 5. e4 {[%emt 0:03:54]} f5 {[%emt 0:00:30]} 6. Ng5 {[%emt 0:08:39]} Nf6 {[%emt 0:00:18]} 7. Bb5+ {[%emt 0:00:29]} Bd7 {[%emt 0:00:15]} 8. Bxd7+ {[%emt 0:00:25]} Nbxd7 {[%emt 0:00:06]} 9. Ne6 {[%emt 0:00:33]} fxe4 {[%emt 0:00:50]} 10. O-O {[%emt 0:02:07]} h6 {[%emt 0:00:11]} 11. Re1 {[%emt 0:01:13]} Rc8 {[%emt 0:00:38]} 12. Nxe4 {[%emt 0:02:54]} Ke7 {[%emt 0:00:39]} 13. Kh1 {[%emt 0:03:21]} c4 {[%emt 0:00:46]} 14. f4 {[%emt 0:07:05]} Nxe4 {[%emt 0:01:14]} 15. Rxe4 {[%emt 0:00:32]} Nf6 {[%emt 0:00:14]} 16. Re2 {[%emt 0:01:38]} e4 {[%emt 0:01:54]} 17. Be3 {[%emt 0:04:13]} Qa5 {[%emt 0:00:15]} 18. Bd4 {[%emt 0:01:23]} Nxd5 {[%emt 0:00:40]} 19. Rxe4 {[%emt 0:01:38]} Kd7 {[%emt 0:00:52]} 20. Nxf8+ {[%emt 0:02:45]} Rhxf8 {[%emt 0:00:19]} 21. Qg4+ {[%emt 0:00:55]} Kc6 {[%emt 0:00:09]} 22. Bxg7 {[%emt 0:01:40]} Rg8 {[%emt 0:00:05]} 23. Rxc4+ {[%emt 0:01:09]} Qc5 {[%emt 0:00:40]} 24. Rxc5+ {[%emt 0:00:40]} Kxc5 {[%emt 0:00:06]} 25. b4+ {[%emt 0:04:49]} Kc6 {[%emt 1:31:53]} 26. Rd1 {[%emt 0:01:52]} Nxb4 {[%emt 0:00:00]} 27. f5 {[%emt 0:01:07]} a5 {[%emt 0:00:00]} 28. Qc4+ {[%emt 0:00:10]} Kd7 {[%emt 0:00:00]} 29. Qe6+ {[%emt 0:00:42]} Kc6 {[%emt 0:00:00]} 30. Qxd6+ {[%emt 0:00:49]} Kb5 {[%emt 0:00:00]} 31. Rb1 {[%emt 0:04:25]} Ka4 {[%emt 0:00:00]} 32. Qd7+ {[%emt 0:00:52]} b5 {[%emt 0:00:00]} 33. c3 {[%emt 0:00:55]} Nc6 {[%emt 0:00:00]} 34. Qd5 {[%emt 0:00:46]} Rxg7 {[%emt 0:00:00]} 35. Qxb5+ {[%emt 0:00:13]} Ka3 {[%emt 0:00:00] Check Result:?ev?} 36. Qb3# {[%emt 0:00:37]} 1-0

[Event "7th Leer Open-B 2024"]
[Site "Leer"]
[Date "2024.10.31"]
[Round "2.17"]
[White "Drozd, Maciej"]
[Black "Grabowski, Joshua"]
[Result "0-1"]
[ECO "C01"]
[WhiteElo "1752"]
[BlackElo "1623"]
[Annotator "NA COMBH"]
[PlyCount "56"]
[EventDate "2024.10.14"]
[EventType "swiss"]
[EventCountry "GER"]
[SourceTitle "playchess.com"]
[Source "ChessBase"]
[SourceQuality "1"]
[TimeControl "40/5400+30:900+30"]

1. e4 {[%emt 0:00:17]} e6 {[%emt 0:00:14]} 2. d4 {[%emt 0:00:08]} d5 {[%emt 0:00:04]} 3. Bd3 {[%emt 0:00:09]} c5 {[%emt 0:00:47]} 4. exd5 {[%emt 0:00:10]} Qxd5 {[%emt 0:00:59]} 5. Nc3 {[%emt 0:00:20]} Qxd4 {[%emt 0:05:53]} 6. Nb5 {[%emt 0:00:12]} Qe5+ {[%emt 0:01:03]} 7. Ne2 {[%emt 0:01:18]} Na6 {[%emt 0:00:48]} 8. Bd2 {[%emt 0:04:14]} Bd7 {[%emt 0:03:05]} 9. O-O {[%emt 0:03:38]} Nf6 {[%emt 0:06:31]} 10. a4 {[%emt 0:05:13]} Nd5 {[%emt 0:05:02]} 11. c3 {[%emt 0:07:05]} Nac7 {[%emt 0:01:03]} 12. f4 {[%emt 0:06:57]} Qf6 {[%emt 0:01:55]} 13. Qb3 {[%emt 0:03:17]} Qd8 {[%emt 0:04:56]} 14. Rae1 {[%emt 0:01:24]} Nxb5 {[%emt 0:01:58]} 15. axb5 {[%emt 0:00:12]} Bd6 {[%emt 0:01:59]} 16. c4 {[%emt 0:03:16]} Nf6 {[%emt 0:01:46]} 17. f5 {[%emt 0:04:58]} O-O {[%emt 0:01:15]} 18. Bg5 {[%emt 0:01:35]} Be7 {[%emt 0:02:01]} 19. fxe6 {[%emt 0:01:11]} Bxe6 {[%emt 0:00:25]} 20. Nf4 {[%emt 0:00:34]} Qd4+ {[%emt 0:06:07]} 21. Kh1 {[%emt 0:00:17]} h6 {[%emt 0:09:09]} 22. Nxe6 {[%emt 0:06:57]} fxe6 {[%emt 0:00:11]} 23. Bc1 {[%emt 0:10:28]} Ne4 {[%emt 0:01:42]} 24. Be3 {[%emt 0:08:11]} Rxf1+ {[%emt 0:02:26]} 25. Bxf1 {[%emt 0:01:16]} Qf6 {[%emt 0:02:30]} 26. Qc2 {[%emt 0:01:22]} Qh4 {[%emt 0:01:50]} 27. Qc1 {[%emt 0:06:48]} Bd6 {[%emt 0:01:20]} 28. h3 {[%emt 0:01:50] Check Result:-#11} Qg3 {[%emt 0:01:32]} 0-1